bitfinex-derivatives/quotes_SOLF0:USTF0_20250527
["timestamp","ask_amount","ask_price","bid_price","bid_amount"]
[1748334177785,0.04030364,176.02,175.98,0.04250761]
[1748334178389,5.71980364,176.02,175.99,5.6802]
[1748334178888,0.04030364,176.02,175.98,0.04250761]
[1748334180084,0.04030364,176.02,176.01,5.6797]
[1748334180295,0.04030364,176.02,175.98,0.04250761]
[1748334180587,0.04030364,176.02,175.99,5.6804]
[1748334181496,5.71990364,176.02,175.99,5.6804]
[1748334181893,5.71990364,176.02,176.0,5.68]
[1748334183094,5.71990364,176.02,175.99,5.6802]
[1748334183395,5.71990364,176.02,175.98,0.04250761]
[1748334183592,0.04030364,176.02,176.01,5.6797]
[1748334184895,0.04030364,176.02,175.98,0.04250761]
[1748334185396,5.71990364,176.02,175.99,5.6802]
[1748334186493,0.04030364,176.02,176.01,5.6797]
[1748334187798,0.04030364,176.02,176.0,5.68]
[1748334188691,0.04030364,176.02,176.01,5.6797]
[1748334189091,0.04030364,176.02,176.0,5.68]
[1748334189900,0.04030364,176.02,175.99,5.6803]
[1748334190397,0.04030364,176.02,175.99,5.6801]
[1748334190897,0.04030364,176.02,176.0,5.68]
[1748334191200,0.04030364,176.02,175.98,0.04250761]
[1748334192601,5.6801,176.0,175.98,0.04250761]
[1748334193003,0.04030364,176.02,175.98,0.04250761]
[1748334194198,0.04030364,176.02,176.01,5.6797]
[1748334195602,0.04030364,176.02,175.98,0.04250761]
[1748334196504,0.04030364,176.02,175.99,5.6803]
[1748334196703,0.04030364,176.02,175.98,0.04250761]
[1748334198006,0.04030364,176.02,175.99,5.6803]
[1748334198205,0.04030364,176.02,175.98,0.04250761]
[1748334198506,0.04030364,176.02,176.0,5.6798]
[1748334199606,5.9511,176.12,176.01,142.9]
[1748334199800,5.9511,176.12,176.02,1.9905]
[1748334200000,5.9511,176.12,176.02,4.0454]
[1748334200201,1.953,176.12,176.02,4.0454]
[1748334200408,5.6769,176.1,176.02,4.0454]
[1748334200604,0.04311807,176.08,176.04,0.03653883]
[1748334201203,0.04311807,176.08,176.04,5.71503883]
[1748334201404,0.04311807,176.08,176.04,0.03653883]
[1748334201606,5.72061807,176.08,176.04,0.03653883]
[1748334201912,0.04311807,176.08,176.04,0.03653883]
[1748334202816,5.6781,176.07,176.04,0.03653883]
[1748334204909,5.6782,176.06,176.04,0.03653883]
[1748334205710,0.04311807,176.08,176.04,0.03653883]
[1748334206308,0.04311807,176.08,176.06,5.678]
[1748334206814,0.04311807,176.08,176.05,5.6784]
[1748334207506,0.04311807,176.08,176.06,5.6781]
[1748334209020,0.04311807,176.08,176.05,5.6783]
[1748334209416,0.04311807,176.08,176.04,0.03653883]
[1748334210015,5.72061807,176.08,176.05,5.6784]
[1748334210617,0.04311807,176.08,176.05,5.6784]
[1748334210920,0.04311807,176.08,176.06,5.6781]
[1748334211311,0.04311807,176.08,176.04,0.03653883]
[1748334211515,0.04311807,176.08,176.05,5.6782]
[1748334212517,0.04311807,176.08,176.06,5.678]
[1748334213018,0.04311807,176.08,176.04,0.03653883]
[1748334213019,0.04311807,176.08,176.05,5.6784]
[1748334213317,151.83252688,176.16,176.04,0.03653883]
[1748334213318,1.8995,176.16,176.06,142.88]
[1748334213513,7.08515403,176.18,176.06,142.88]
[1748334213514,7.08515403,176.18,176.07,1.9598]
[1748334213820,5.6747,176.17,176.07,1.9598]
[1748334214212,0.03981177,176.14,176.12,5.6759]
[1748334215320,0.03981177,176.14,176.13,5.6759]
[1748334222725,0.03981177,176.14,176.12,5.6761]
[1748334224024,0.03981177,176.14,176.11,142.86]
[1748334225226,0.03981177,176.14,176.12,5.676]
[1748334225525,0.03981177,176.14,176.11,142.86]
[1748334225934,0.03981177,176.14,176.12,5.676]
[1748334227329,0.03981177,176.14,176.13,5.6759]
[1748334228831,0.03981177,176.14,176.12,5.6762]
[1748334229533,5.71541177,176.14,176.11,148.5365]
[1748334229732,0.03981177,176.14,176.1,0.04332167]
[1748334230234,5.6762,176.13,176.1,5.72012167]
[1748334230435,0.03981177,176.14,176.1,0.04332167]
[1748334231738,5.6765,176.11,176.1,0.04332167]
[1748334232037,0.03981177,176.14,176.1,0.04332167]
[1748334232737,5.6759,176.13,176.1,0.04332167]
[1748334233241,5.6762,176.12,176.1,5.72012167]
[1748334234341,5.6762,176.12,176.1,0.04332167]
[1748334237941,5.6765,176.11,176.1,0.04332167]
[1748334240641,5.68,176.11,176.01,0.47381589]
[1748334240849,5.05112688,176.08,176.01,0.47381589]
[1748334241049,147.63112688,176.08,176.01,0.47381589]
[1748334241640,147.63112688,176.08,176.0,3.33288434]
[1748334241641,0.03920064,176.06,176.03,0.04127746]
[1748334241944,5.6785,176.05,176.03,0.04127746]
[1748334243545,0.03920064,176.06,176.03,0.04127746]
[1748334244052,0.03920064,176.06,176.05,5.6785]
[1748334244351,0.03920064,176.06,176.03,0.04127746]
[1748334244744,5.71750064,176.06,176.03,5.72017746]
[1748334245246,5.6785,176.05,176.03,0.04127746]
[1748334245448,0.03920064,176.06,176.03,0.04127746]
[1748334245744,5.6785,176.05,176.03,0.04127746]
[1748334246046,0.03920064,176.06,176.03,0.04127746]
[1748334247550,5.71750064,176.06,176.03,5.72007746]
[1748334249259,5.6785,176.05,176.03,5.72007746]
[1748334249456,5.6785,176.05,176.03,0.04127746]
[1748334249762,0.03920064,176.06,176.03,0.04127746]
[1748334249954,5.6787,176.05,176.03,0.04127746]
[1748334250150,0.03920064,176.06,176.03,0.04127746]
[1748334250360,5.6785,176.05,176.03,0.04127746]
[1748334250961,5.71750064,176.06,176.03,0.04127746]
[1748334251460,5.71750064,176.06,176.03,5.72017746]
[1748334251962,5.6785,176.05,176.03,5.72017746]
[1748334252667,5.6785,176.05,176.03,0.04127746]
[1748334253260,0.03920064,176.06,176.03,0.04127746]
[1748334254061,5.6786,176.05,176.03,0.04127746]
[1748334254964,0.03920064,176.06,176.03,0.04127746]
[1748334255867,5.6787,176.05,176.03,0.04127746]
[1748334257571,5.6788,176.04,176.03,0.04127746]
[1748334270765,147.51112688,176.05,175.97,142.58]
[1748334271164,5.6799,176.01,175.98,5.6806]
[1748334271359,147.51112688,176.05,175.98,5.6806]
[1748334271565,147.51112688,176.05,176.0,0.03739892]
[1748334271566,0.04065868,176.03,176.0,0.03739892]
[1748334271767,5.6797,176.01,176.0,0.03739892]
[1748334273374,5.6795,176.02,176.0,0.03739892]
[1748334273673,0.04065868,176.03,176.0,0.03739892]
[1748334274074,5.71985868,176.03,176.0,5.71739892]
[1748334275974,0.04065868,176.03,176.0,0.03739892]
[1748334276576,0.04065868,176.03,176.02,5.6794]
[1748334276979,0.04065868,176.03,176.0,0.03739892]
[1748334277572,5.71995868,176.03,176.0,5.71729892]
[1748334278277,5.6795,176.02,176.0,0.03739892]
[1748334280377,5.71985868,176.03,176.0,5.71729892]
[1748334281079,5.71985868,176.03,176.01,5.6797]
[1748334282082,5.71985868,176.03,176.0,5.71739892]
[1748334283381,5.6794,176.02,176.0,5.71739892]
[1748334283784,0.04065868,176.03,176.0,5.71739892]
[1748334283982,5.71995868,176.03,176.0,5.71739892]
[1748334284582,5.6795,176.02,176.0,5.71739892]
[1748334285386,5.6795,176.02,176.0,0.03739892]
[1748334286686,5.6795,176.02,176.0,5.71739892]
[1748334287287,5.71985868,176.03,176.0,5.71739892]
[1748334287785,5.71985868,176.03,176.01,5.6797]
[1748334288186,5.71985868,176.03,176.0,0.03739892]
[1748334288692,5.6794,176.02,176.0,5.71729892]
[1748334290487,5.6797,176.01,176.0,0.03739892]
[1748334290886,0.04065868,176.03,176.0,0.03739892]
[1748334291086,5.6797,176.02,176.0,0.03739892]
[1748334291488,5.6797,176.02,176.0,5.71739892]
[1748334291689,5.6797,176.02,176.0,0.03739892]
[1748334292083,0.04065868,176.03,176.0,0.03739892]
[1748334292290,5.6797,176.01,176.0,0.03739892]
[1748334293290,5.6796,176.02,176.0,0.03739892]
[1748334293989,8.91186993,176.02,176.0,0.03739892]
[1748334294291,5.6796,176.02,176.0,5.71739892]
[1748334294491,8.91186993,176.02,176.0,5.71739892]
[1748334295793,8.91186993,176.02,176.0,0.03739892]
[1748334296488,5.6797,176.01,176.0,0.03739892]
[1748334296684,3.23226993,176.02,176.0,0.03739892]
[1748334296889,8.91176993,176.02,176.0,0.03739892]
[1748334297088,3.23226993,176.02,176.0,0.03739892]
[1748334297391,8.91186993,176.02,176.0,0.03739892]
[1748334297692,3.23226993,176.02,176.0,0.03739892]
[1748334298192,5.71985868,176.03,176.0,5.71719892]
[1748334298393,3.23226993,176.02,176.0,5.71719892]
[1748334299491,5.6794,176.02,176.0,5.71719892]
[1748334299792,8.91166993,176.02,176.0,5.71719892]
[1748334300294,8.91166993,176.02,176.0,0.03739892]
[1748334300492,5.6797,176.01,176.0,0.03739892]
[1748334301297,8.91176993,176.02,176.0,0.03739892]
[1748334301597,0.04065868,176.03,176.0,0.03739892]
[1748334301894,3.23226993,176.02,176.0,0.03739892]
[1748334302995,0.04065868,176.03,176.0,0.03739892]
[1748334303698,0.04065868,176.03,176.02,5.6794]
[1748334308400,0.04065868,176.03,176.01,5.6796]
[1748334308701,0.04065868,176.03,176.0,0.03739892]
[1748334309301,0.04065868,176.03,176.02,5.6794]
[1748334311799,5.868e-05,176.03,176.02,5.6794]
[1748334323207,10.62773104,176.2,176.13,5.6758]
[1748334323411,10.62773104,176.2,176.08,249.44]
[1748334323612,10.62773104,176.2,176.09,143.5935]
[1748334323808,16.30153104,176.2,176.15,5.6751]
[1748334324007,10.62773104,176.2,176.09,145.4915]
[1748334324311,0.03993492,176.15,176.12,0.03839246]
[1748334324510,0.03993492,176.15,176.14,5.6755]
[1748334329813,3.492e-05,176.15,176.14,5.6755]
[1748334330914,3.492e-05,176.15,176.14,147.1755]
[1748334334622,3.492e-05,176.15,176.14,147.1755]
[1748334337529,5.6724,176.24,176.14,249.3]
[1748334338024,5.6724,176.24,176.2,5.6736]
[1748334338326,9.5899,176.25,176.14,249.3]
[1748334338517,0.040194,176.21,176.2,5.6734]
[1748334339721,0.040194,176.21,176.19,5.6739]
[1748334340221,0.040194,176.21,176.19,5.6737]
[1748334341221,0.040194,176.21,176.2,5.6736]
[1748334341627,0.040194,176.21,176.19,5.6739]
[1748334342327,0.040194,176.21,176.2,5.6736]
[1748334342823,0.040194,176.21,176.19,5.6739]
[1748334343021,0.040194,176.21,176.18,0.04153281]
[1748334344024,0.040194,176.21,176.2,5.6736]
[1748334347329,0.040194,176.21,176.18,0.04153281]
[1748334347730,0.040194,176.21,176.19,5.6739]
[1748334348236,5.713494,176.21,176.18,5.71573281]
[1748334348423,0.040194,176.21,176.18,0.04153281]
[1748334348933,0.040194,176.21,176.18,5.71573281]
[1748334350334,5.6737,176.2,176.18,5.71573281]
[1748334352741,0.040194,176.21,176.2,5.6736]
[1748334355545,0.040194,176.21,176.19,5.6739]
[1748334358043,0.040194,176.21,176.2,5.6736]
[1748334359345,0.040194,176.21,176.18,0.04153281]
[1748334359942,5.713594,176.21,176.18,0.04153281]
[1748334360542,5.713594,176.21,176.18,5.71573281]
[1748334361546,5.713594,176.21,176.18,0.04153281]
[1748334362046,0.040194,176.21,176.19,5.6739]
[1748334362445,5.713494,176.21,176.18,5.71563281]
[1748334362841,0.040194,176.21,176.18,0.04153281]
[1748334363046,5.713494,176.21,176.18,5.71563281]
[1748334363744,0.040194,176.21,176.18,5.71563281]
[1748334363953,5.6736,176.2,176.18,5.71563281]
[1748334364152,5.6736,176.2,176.18,0.04153281]
[1748334365651,5.6739,176.19,176.18,0.04153281]
[1748334366646,5.6738,176.2,176.18,0.04153281]
[1748334366943,3.22649129,176.19,176.18,0.04153281]
[1748334367550,12.84529129,176.19,176.18,0.04153281]
[1748334368555,9.6249,176.19,176.1,141.32]
[1748334368754,3.22649129,176.15,176.09,3.80670023]
[1748334368955,3.9449,176.19,176.09,3.80670023]
[1748334368956,3.22649129,176.16,176.09,3.33288434]
[1748334369555,0.03640611,176.14,176.12,5.676]
[1748334370350,5.71200611,176.14,176.12,5.676]
[1748334370650,5.71200611,176.14,176.11,5.71349183]
[1748334372557,5.6759,176.13,176.11,0.03709183]
[1748334373251,0.03640611,176.14,176.11,0.03709183]
[1748334375057,5.6759,176.13,176.11,0.03709183]
[1748334375352,0.03640611,176.14,176.11,0.03709183]
[1748334376555,5.6762,176.13,176.11,0.03709183]
[1748334377359,5.6762,176.12,176.11,0.03709183]
[1748334377564,0.03640611,176.14,176.11,0.03709183]
[1748334377964,5.6761,176.13,176.11,0.03709183]
[1748334378162,0.03640611,176.14,176.11,0.03709183]
[1748334378665,5.6762,176.12,176.11,0.03709183]
[1748334386670,5.6778,176.07,176.02,141.36]
[1748334386866,141.38,176.11,176.05,5.6784]
[1748334387069,141.38,176.11,176.02,249.2]
[1748334387268,5.6776,176.08,176.02,141.36]
[1748334387469,5.6776,176.08,176.02,249.2]
[1748334387669,0.03601974,176.07,176.05,5.6782]
[1748334387867,5.6785,176.05,176.04,0.04110595]
[1748334391179,147.0581,176.06,176.04,0.04110595]
[1748334391575,141.38,176.06,176.04,0.04110595]
[1748334392973,0.03601974,176.07,176.04,0.04110595]
[1748334395278,0.03601974,176.07,176.06,5.6781]
[1748334402078,5.04351495,176.15,176.06,5.6781]
[1748334402079,148.50515403,176.2,176.12,5.676]
[1748334402580,5.6746,176.17,176.12,5.676]
[1748334402773,5.6746,176.17,176.07,2.0703]
[1748334402980,141.42,176.2,176.13,5.6758]
[1748334403180,0.03682258,176.14,176.13,5.6758]
[1748334407782,0.03682258,176.14,176.12,5.7191293]
[1748334407984,0.03682258,176.14,176.12,0.0430293]
[1748334408380,0.03682258,176.14,176.13,5.6759]
[1748334408782,0.03682258,176.14,176.12,0.0430293]
[1748334408982,0.03682258,176.14,176.12,5.7190293]
[1748334409282,0.03682258,176.14,176.12,0.0430293]
[1748334410585,0.03682258,176.14,176.13,5.6759]
[1748334414990,0.03682258,176.14,176.12,5.7191293]
[1748334416990,0.03682258,176.14,176.13,5.6759]
[1748334417894,0.03682258,176.14,176.12,5.7191293]
[1748334419096,0.03682258,176.14,176.13,5.6759]
[1748334419693,0.03682258,176.14,176.12,0.0430293]
[1748334419891,5.6759,176.13,176.12,0.0430293]
[1748334422404,5.71242258,176.14,176.12,0.0430293]
[1748334422600,0.03682258,176.14,176.12,0.0430293]
[1748334422904,0.03682258,176.14,176.12,5.7192293]
[1748334423803,5.71252258,176.14,176.12,0.0430293]
[1748334424002,0.03682258,176.14,176.12,0.0430293]
[1748334424507,5.6759,176.13,176.12,0.0430293]
[1748334425606,0.03682258,176.14,176.12,0.0430293]
[1748334426207,5.71252258,176.14,176.12,0.0430293]
[1748334426906,5.6759,176.13,176.12,0.0430293]
[1748334434708,5.04351495,176.13,176.01,3.9579]
[1748334434908,3.9803,176.12,176.04,5.6785]
[1748334435206,5.678,176.07,176.04,5.6785]
[1748334435610,5.71891744,176.07,176.04,5.71483435]
[1748334435810,5.6781,176.06,176.04,5.71483435]
[1748334436217,5.6781,176.06,176.04,0.03633435]
[1748334436606,5.6784,176.05,176.04,0.03633435]
[1748334442827,5.6782,176.06,176.04,0.03633435]
[1748334443126,0.04091744,176.07,176.04,0.03633435]
[1748334443624,5.71881744,176.07,176.04,5.71493435]
[1748334444020,0.04091744,176.07,176.04,0.03633435]
[1748334444623,0.04091744,176.07,176.04,5.71503435]
[1748334444624,5.71871744,176.07,176.04,5.71503435]
[1748334447020,5.71871744,176.07,176.05,5.6784]
[1748334447327,5.71871744,176.07,176.04,0.03633435]
[1748334447627,5.71871744,176.07,176.04,5.71493435]
[1748334448126,5.6783,176.06,176.04,0.03633435]
[1748334453032,5.6783,176.06,176.04,5.71513435]
[1748334454137,5.6783,176.06,176.04,0.03633435]
[1748334456939,5.6783,176.06,176.04,5.71503435]
[1748334457234,0.04091744,176.07,176.04,5.71503435]
[1748334457235,5.71881744,176.07,176.04,5.71503435]
[1748334457928,5.6781,176.06,176.04,5.71503435]
[1748334458240,0.04091744,176.07,176.05,5.6784]
[1748334458536,5.71891744,176.07,176.05,5.6784]
[1748334458938,5.71891744,176.07,176.04,5.71493435]
[1748334460441,5.6782,176.06,176.04,5.71493435]
[1748334461040,5.71881744,176.07,176.05,5.6784]
[1748334461837,0.04091744,176.07,176.06,5.6781]
[1748334462339,0.04091744,176.07,176.05,5.6783]
[1748334462542,5.71881744,176.07,176.05,5.6783]
[1748334462737,0.04091744,176.07,176.05,5.6783]
[1748334463938,0.04091744,176.07,176.06,5.6781]
[1748334464342,0.04091744,176.07,176.05,5.6784]
[1748334464539,5.71881744,176.07,176.05,5.6784]
[1748334465643,0.04091744,176.07,176.04,0.03633435]
[1748334466045,0.04091744,176.07,176.05,5.6783]
[1748334466246,5.71871744,176.07,176.04,0.03633435]
[1748334466835,5.71871744,176.07,176.05,5.6784]
[1748334468748,5.6782,176.06,176.04,5.71493435]
[1748334469046,0.04091744,176.07,176.04,5.71493435]
[1748334469345,5.71891744,176.07,176.04,5.71493435]
[1748334469544,0.04091744,176.07,176.05,5.6784]
[1748334469845,5.71891744,176.07,176.04,0.03633435]
[1748334470045,5.71891744,176.07,176.04,5.71493435]
[1748334470743,5.6782,176.06,176.04,5.71493435]
[1748334471642,5.6782,176.06,176.04,0.03633435]
[1748334474651,5.6784,176.05,176.04,0.03633435]
[1748334475146,0.04091744,176.07,176.04,0.03633435]
[1748334475449,5.6784,176.06,176.04,0.03633435]
[1748334475847,5.6784,176.05,176.04,0.03633435]
[1748334480451,5.6783,176.06,176.04,0.03633435]
[1748334480753,3.27125754,176.07,176.04,0.03633435]
[1748334481553,5.6784,176.05,176.04,0.03633435]
[1748334481945,3.27125754,176.07,176.04,0.03633435]
[1748334482254,5.6783,176.06,176.04,0.03633435]
[1748334482554,5.6784,176.05,176.04,0.03633435]
[1748334483153,3.27125754,176.07,176.04,0.03633435]
[1748334483154,5.6782,176.06,176.04,0.03633435]
[1748334483754,0.04091744,176.07,176.04,0.03633435]
[1748334485154,5.6781,176.06,176.04,0.03633435]
[1748334485855,5.6784,176.05,176.04,0.03633435]
[1748334487556,5.6782,176.06,176.04,0.03633435]
[1748334487957,0.04091744,176.07,176.04,0.03633435]
[1748334489055,0.04091744,176.07,176.05,5.6783]
[1748334489656,0.04091744,176.07,176.05,5.6784]
[1748334491659,5.71881744,176.07,176.05,5.6784]
[1748334492158,5.71881744,176.07,176.04,5.71493435]
[1748334492358,5.6781,176.06,176.04,5.71493435]
[1748334492556,0.04091744,176.07,176.04,5.71493435]
[1748334492756,0.04091744,176.07,176.05,5.6784]
[1748334492958,5.71891744,176.07,176.04,0.03633435]
[1748334493264,5.71891744,176.07,176.04,5.71493435]
[1748334493462,5.6782,176.06,176.04,5.71493435]
[1748334494861,5.71881744,176.07,176.04,5.71493435]
[1748334495063,0.04091744,176.07,176.04,5.71493435]
[1748334495360,5.71881744,176.07,176.04,5.71493435]
[1748334498859,5.6784,176.06,176.04,0.03633435]
[1748334499166,0.04091744,176.07,176.04,0.03633435]
[1748334500266,5.6784,176.05,176.04,0.03633435]
[1748334506666,5.6783,176.06,176.04,0.03633435]
[1748334506965,0.04091744,176.07,176.04,0.03633435]
[1748334507171,5.6784,176.05,176.04,0.03633435]
[1748334508372,5.6784,176.06,176.04,0.03633435]
[1748334508774,5.6784,176.05,176.04,0.03633435]
[1748334512181,8.9087401,176.05,176.04,0.03633435]
[1748334513280,3.2303401,176.05,175.98,0.47172903]
[1748334513475,3.2303401,176.05,176.0,5.68]
[1748334513979,5.6795,176.02,176.0,5.68]
[1748334520982,5.71727312,176.03,176.0,5.68]
[1748334522683,5.71727312,176.03,176.01,5.6797]
[1748334523784,0.03807312,176.03,176.02,5.6794]
[1748334544399,0.03807312,176.03,175.99,107.88]
[1748334545497,0.03807312,176.03,176.02,5.6794]
[1748334547605,0.03807312,176.03,175.99,107.88]
[1748334549404,0.03807312,176.03,176.02,5.6794]
[1748334549807,0.03807312,176.03,176.01,5.6796]
[1748334550306,5.71737312,176.03,176.01,5.6796]
[1748334550607,0.03807312,176.03,176.02,5.6794]
[1748334555906,7.312e-05,176.03,176.02,5.6794]
[1748334557411,7.312e-05,176.03,176.02,6.15112903]
[1748334557605,7.312e-05,176.03,176.02,8.15962903]
[1748334557909,7.312e-05,176.03,176.02,11.38996913]
[1748334558411,3.2303401,176.12,176.1,5.6767]
[1748334558609,3.2303401,176.12,176.07,107.88]
[1748334558811,3.2303401,176.14,176.07,107.88]
[1748334559109,8.9061401,176.14,176.1,5.6766]
[1748334559411,8.94428506,176.14,176.1,5.71247585]
[1748334559611,8.94428506,176.14,176.11,5.6765]
[1748334560210,8.94428506,176.14,176.1,0.03587585]
[1748334560413,8.94428506,176.14,176.1,5.71237585]
[1748334560609,8.94428506,176.14,176.1,0.03587585]
[1748334561208,0.03814496,176.14,176.1,0.03587585]
[1748334561406,0.03814496,176.14,176.13,5.6759]
[1748334562507,0.03814496,176.14,176.12,5.6762]
[1748334562903,0.03814496,176.14,176.1,139.11587585]
[1748334563108,0.03814496,176.14,176.1,142.34621595]
[1748334563306,0.03814496,176.14,176.13,5.6759]
[1748334570023,0.03814496,176.14,176.1,144.34031595]
[1748334570318,0.03814496,176.14,176.1,141.10997585]
[1748334571218,0.03814496,176.14,176.13,5.6759]
[1748334581525,0.03814496,176.14,176.12,5.6761]
[1748334583123,0.03814496,176.14,176.13,5.6759]
[1748334583524,0.03814496,176.14,176.1,248.92997585]
[1748334584124,0.03814496,176.14,176.1,141.10997585]
[1748334584827,0.03814496,176.14,176.11,5.6765]
[1748334585815,0.03814496,176.14,176.12,5.6761]
[1748334589030,5.71374496,176.14,176.11,5.6765]
[1748334589829,0.03814496,176.14,176.12,5.6762]
[1748334590627,0.03814496,176.14,176.13,5.6759]
[1748334596939,143.97814496,176.14,176.1,0.03587585]
[1748334597136,8.9068401,176.11,176.1,0.03587585]
[1748334598037,5.6773,176.09,176.07,3.33046014]
[1748334598432,5.677,176.1,176.07,3.33046014]
[1748334598939,5.71380648,176.1,176.07,3.33046014]
[1748334599245,5.71380648,176.1,176.07,5.6778]
[1748334599538,5.6772,176.09,176.06,0.47172903]
[1748334599939,5.6772,176.09,176.06,6.14962903]
[1748334600135,5.6772,176.09,176.06,5.6779]
[1748334600340,5.71380648,176.1,176.06,5.6779]
[1748334600740,5.71380648,176.1,176.07,5.6778]
[1748334601138,0.03680648,176.1,176.01,249.41046014]
[1748334601437,0.03680648,176.1,176.02,107.82]
[1748334601837,0.03680648,176.1,176.09,5.6772]
[1748334604550,6.48e-06,176.1,176.09,5.6772]
[1748334605644,5.6734,176.21,176.17,5.6744]
[1748334605841,138.28,176.22,176.12,246.1]
[1748334606547,0.04264546,176.19,176.15,0.03900374]
[1748334606940,0.04264546,176.19,176.18,5.6743]
[1748334607142,4.546e-05,176.19,176.18,5.6743]
[1748334618847,490.32,176.29,176.26,5.6714]
[1748334619051,143.9506,176.3,176.26,5.6714]
[1748334619353,138.28,176.3,176.21,107.78]
[1748334619951,0.03789851,176.27,176.24,0.03977633]
[1748334620349,5.70949851,176.27,176.24,0.03977633]
[1748334620947,0.03789851,176.27,176.11,11.3527]
[1748334621144,5.04819885,176.28,176.11,11.3527]
[1748334621145,5.04819885,176.28,176.16,107.78]
[1748334621349,5.6732,176.22,176.16,107.78]
[1748334621551,5.6732,176.22,176.19,5.6739]
[1748334621954,5.71512365,176.22,176.19,0.04028518]
[1748334623862,0.04192365,176.22,176.19,0.04028518]
[1748334624555,5.6736,176.2,176.19,0.04028518]
[1748334624759,0.04192365,176.22,176.12,21.15408871]
[1748334624958,3.933,176.23,176.12,21.15408871]
[1748334625352,1.9895,176.23,176.12,21.15408871]
[1748334625558,1.9895,176.23,176.21,5.6733]
[1748334626061,1.9895,176.23,176.16,138.22]
[1748334626257,0.04231775,176.21,176.16,138.22]
[1748334627360,0.04231775,176.21,176.19,5.6736]
[1748334627662,0.04231775,176.21,176.2,5.6736]
[1748334632559,0.04231775,176.21,176.18,5.6741]
[1748334632764,0.04231775,176.21,176.16,138.22]
[1748334632765,0.04231775,176.21,176.12,154.12588986]
[1748334632966,5.6741,176.19,176.12,154.12588986]
[1748334633162,0.03882596,176.17,176.12,154.12588986]
[1748334634460,0.03882596,176.17,176.16,5.6749]
[1748334635066,0.03882596,176.17,176.15,5.6751]
[1748334636266,0.03882596,176.17,176.12,138.02]
[1748334636267,0.03882596,176.17,176.16,5.6749]
[1748334637165,0.03882596,176.17,176.15,5.6751]
[1748334637966,0.03882596,176.17,176.14,5.6755]
[1748334638168,0.03882596,176.17,176.12,138.02]
[1748334639267,0.03882596,176.17,176.14,5.6752]
[1748334639760,5.6754,176.15,176.08,138.04]
[1748334639964,0.04161667,176.13,176.12,5.676]
[1748334642176,0.04161667,176.13,176.04,138.04]
[1748334642367,0.04161667,176.13,176.04,245.84]
[1748334642666,138.08161667,176.13,176.04,138.04]
[1748334644070,5.677,176.1,176.07,5.6776]
[1748334644370,5.677,176.1,176.04,138.04]
[1748334644673,0.03611719,176.09,176.06,5.678]
[1748334645173,0.03611719,176.09,176.07,5.6777]
[1748334645367,0.03611719,176.09,176.04,138.04]
[1748334645872,0.03611719,176.09,176.06,5.6778]
[1748334646072,0.03611719,176.09,176.04,138.04]
[1748334646272,0.03611719,176.09,176.06,5.678]
[1748334646573,5.71351719,176.09,176.06,5.678]
[1748334646875,0.03611719,176.09,176.0,138.06]
[1748334647174,0.03611719,176.09,176.01,107.82]
[1748334647671,0.03611719,176.09,176.0,138.06]
[1748334648272,5.6783,176.06,176.04,5.6788]
[1748334648472,5.6783,176.06,176.0,138.06]
[1748334648672,0.04149541,176.05,176.0,138.06]
[1748334649173,0.04149541,176.05,175.96,628.73172903]
[1748334649477,0.04149541,176.05,176.0,5.6798]
[1748334649675,5.679,176.04,176.0,5.6798]
[1748334649867,0.04149541,176.05,176.0,5.6798]
[1748334650066,0.04149541,176.05,175.96,736.1]
[1748334650272,5.6791,176.03,175.96,628.26]
[1748334650467,0.04235505,176.01,175.96,736.1]
[1748334651068,0.04235505,176.01,175.96,138.08]
[1748334651371,0.04235505,176.01,175.98,5.6805]
[1748334652377,5.72215505,176.01,175.98,5.6805]
[1748334652674,0.04235505,176.01,175.96,138.08]
[1748334653074,0.04235505,176.01,175.97,5.681]
[1748334653267,0.04235505,176.01,175.94,3.9723]
[1748334653779,0.04235505,176.01,175.98,5.6805]
[1748334654077,5.72215505,176.01,175.98,5.6805]
[1748334654270,0.04235505,176.01,175.98,5.6805]
[1748334654471,0.04235505,176.01,175.99,5.6804]
[1748334654673,0.04235505,176.01,175.94,3.9723]
[1748334656574,0.04235505,176.01,175.92,138.1]
[1748334657178,5.72215505,176.01,175.92,138.1]
[1748334657479,5.72215505,176.01,175.92,245.96]
[1748334657879,5.72215505,176.01,175.97,5.6808]
[1748334660079,5.6801,176.0,175.97,5.6808]
[1748334660976,0.04235505,176.01,175.92,245.96]